Workbook

Sheet main
B2: Doping Calc
B4: Written by Phil Ahrenkiel, 2018
B6: Computes carrier concentation, etc.

Sheet calc np
A2: Input:
A3: ND | B3: 0 | C3: cm^-3 | D3: //donor density
A4: NA | B4: 0 | C4: cm^-3 | D4: //acceptor density
A5: Vn | B5: 0.01 | C5: eV | D5: //donor ionization energy
A6: Vp | B6: 0.01 | C6: eV | D6: //acceptor ionization energy
A7: Eg | B7: 1.1 | C7: eV | D7: //bandgap
A8: mC/m0 | B8: 1 | D8: //conduction-band effective mass
A9: mV/m0 | B9: 1 | D9: //valence-band effective mass
A10: T | B10: 300 | C10: K | D10: //temperature
A12: Output:
A13: kT | B13: =const!$C$15*$B$10/300 -> 0.0258520269 | C13: eV | D13: //thermal energy
A14: N0 | B14: =const!$C$23*($B$10/300)^1.5 -> 2.509416596e+19 | C14: cm^-3 | D14: //reference effective DOS
A15: NC | B15: =$B$8^1.5*$B$14 -> 2.509416596e+19 | C15: cm^-3 | D15: //conduction-band effective density of states
A16: NV | B16: =$B$9^1.5*$B$14 -> 2.509416596e+19 | C16: cm^-3 | D16: //valence-band effective density of states
J17: degenerate:
A18: ni | B18: =SQRT($B$15*$B$16*F3D(($B$7-B21)/$B$13)*F3D(B21/$B$13)) -> 1.445403552e+10 | C18: cm^-3 | D18: //intrinsic carrier concentration | J18: =SQRT($B$15*$B$16)*EXP(-$B$7/2/$B$13) -> 1.445403553e+10
A19: n | B19: =$B$15*F3D(($B$7-B22)/$B$13) -> 1.445403552e+10 | C19: cm^-3 | D19: //electron conc. | J19: =$B$18*EXP((B22-B21)/$B$13) -> 1.445403552e+10
A20: p | B20: =$B$16*F3D(B22/$B$13) -> 1.445403552e+10 | C20: cm^-3 | D20: //hole conc. | J20: =$B$18*EXP((B21-B22)/$B$13) -> 1.445403552e+10
A21: Ei-EV | B21: =find_Ei_degen(B15,B16,B7,B13) -> 0.55 | C21: eV | D21: //intrinsic-level->VB separation | J21: =$B$7/2-$B$13/2*LN($B$15/$B$16) -> 0.55
A22: EF-EV | B22: =find_EF_degen($B$3,$B$4,$B$5,$B$6,$B$15,$B$16,$B$7,$B$13) -> 0.55 | C22: eV | D22: //Fermi-level->VB separation | J22: =find_EF($B$3,$B$4,$B$5,$B$6,$B$18,$B$7,J21,$B$13) -> 0.55
A23: ED-EF | B23: =-$B$22+$B$7-$B$5 -> 0.54 | C23: eV | D23: //Fermi-level->donor-level separation | J23: =-J22+$B$7-$B$5 -> 0.54
A24: EF-EA | B24: =B22-$B$6 -> 0.54 | C24: eV | D24: //Fermi-level->acceptor level separation | J24: =J22-$B$6 -> 0.54
A25: ND(+)/ND | B25: =1-1/(EXP(B23/$B$13)+1) -> 0.9999999992 | D25: //fraction of ionized donors | J25: =1-1/(EXP(J23/$B$13)+1) -> 0.9999999992
A26: NA(-)/NA | B26: =1-1/(EXP($B$24/$B$13)+1) -> 0.9999999992 | D26: //fraction of ionized acceptors | J26: =1-1/(EXP(J24/$B$13)+1) -> 0.9999999992
A27: n/NC | B27: =$B$19/$B$15 -> 5.759918679e-10 | D27: //fraction of filled conduction-band states | J27: =J19/$B$15 -> 5.759918679e-10
A28: p/NV | B28: =$B$20/$B$16 -> 5.759918679e-10 | D28: //fraction of filled valence-band (hole) states | J28: =J20/$B$16 -> 5.759918679e-10
A70: x | B70: EC | C70: EV | D70: ED | E70: EA | F70: EF | G70: Ei
A76: 0 | B76: =$B$7 -> 1.1 | C76: 0 | D76: =B76-$B$5 -> 1.09 | E76: =C76+$B$6 -> 0.01 | F76: =B22+C76 -> 0.55 | G76: =B21 -> 0.55
A77: 1 | B77: =B76 -> 1.1 | C77: =C76 -> 0 | D77: =D76 -> 1.09 | E77: 0.01 | F77: 0.55 | G77: 0.55

Sheet const
A1: Fundamental Constants:
A2: Description
A3: Planck constant | B3: h (J.s) | C3: 6.62606876e-34 | E3: h (eV.s) | F3: =C3/C5 -> 4.135667273e-15
A4: speed of light | B4: c (m/s) | C4: 299792458
A5: fundamental electric charge | B5: e (C) | C5: 1.602176462e-19
A6: Boltzmann constant | B6: k_B (J/K) | C6: 1.3806503e-23 | E6: k_B (eV/K) | F6: =C6/C5 -> 8.617342301e-05
A7: electron mass | B7: m_e (kg) | C7: 9.10938188e-31 | E7: m_e·c^2 (J) | F7: =C7*C4^2 -> 8.18710414e-14 | H7: m_e·c^2 (eV) | I7: =F7/C5 -> 510998.9027
A8: Avagodro number | B8: N_A (1/mole) | C8: 6.0221415e+23
A9: permitivitty of free space | B9: eps0 (F/m) | C9: 8.854187817e-12
A13: Derived Constants:
A14: Description
A15: room temp. thermal energy | B15: k_B·(300K) (eV) | C15: =300*const!C6/const!C5 -> 0.0258520269
A16: Planck constant x speed of light | B16: h·c (eV·nm) | C16: =const!F3*const!C4*1000000000 -> 1239.841857 | E16: h·c (KeV·nm) | F16: =C16/1000 -> 1.239841857
A17: universal gas constant | B17: R (J/mol/K) | C17: =const!C6*const!C8 -> 8.314471469
A18: Faraday Constant | B18: F (C/mol) | C18: =const!C8*const!C5 -> 96485.33362
A19: Stefan Constant | B19: ss (W.m^2/K) | C19: =2*PI()^5/15*C6^4/C3^3/C4^2 -> 5.670399344e-08
A20: h_bar | C20: =C3/2/PI() -> 1.054571596e-34
A21: Bohr Radius | B21: a0 (m) | C21: =4*PI()*C9*C20^2/C7/C5^2 -> 5.291772086e-11
A22: Rydberg | C22: =C20^2/2/C7/C21^2 -> 2.179871902e-18 | F22: =C22/C5 -> 13.60569172
A23: Reference effective DOS | B23: N0 (cm^-3) | C23: =2*(2*PI()*I7*C15/(C16/10000000)^2)^1.5 -> 2.509416596e+19
